[Event "Oleksandr Stadnyk Memorial 2020"]
[Site "Chortkiv"]
[Date "2020.12.07"]
[Round "1.1"]
[White "Vakulenko, Oleksandr"]
[Black "Polishchuk, Oleg"]
[Result "1-0"]
[ECO "E86"]
[WhiteElo "2245"]
[BlackElo "2155"]
[Annotator "NA"]
[PlyCount "67"]
[EventDate "2020.12.07"]
[EventType "tourn"]
[EventCountry "UKR"]
[SourceTitle "playchess.com"]
[Source "ChessBase"]
[SourceQuality "1"]
[TimeControl "5400+30"]

1. d4 {[%emt 0:00:00]} Nf6 {[%emt 0:00:00]} 2. c4 {[%emt 0:00:00]} g6 {[%emt 0:00:00]} 3. Nc3 {[%emt 0:00:30]} Bg7 {[%emt 0:00:00]} 4. e4 {[%emt 0:00:00]} d6 5. f3 O-O {[%emt 0:00:22]} 6. Be3 {[%emt 0:00:50]} e5 {[%emt 0:01:04]} 7. Nge2 {[%emt 0:00:26]} c6 {[%emt 0:03:39]} 8. Qd2 {[%emt 0:02:18]} Re8 {[%emt 0:02:12]} 9. d5 {[%emt 0:01:33]} cxd5 {[%emt 0:00:15]} 10. cxd5 {[%emt 0:00:23]} Nbd7 {[%emt 0:00:52]} 11. Nb5 {[%emt 0:09:16]} Nc5 {[%emt 0:08:02]} 12. Rc1 {[%emt 0:04:29]} b6 {[%emt 0:06:14] [#]} 13. b4 $1 {[%emt 0:05:42]} Ba6 {[%emt 0:00:58]} 14. Nec3 $18 {[%emt 0:06:51]} ({Don't do} 14. bxc5 $6 Bxb5 15. c6 Rf8 $18) 14... Nb7 {[%emt 0:05:00]} 15. Nxd6 {[%emt 0:04:20]} Nxd6 {[%emt 0:00:02]} 16. Bxa6 {[%emt 0:00:08]} Nh5 {[%emt 0:02:11]} 17. O-O {[%emt 0:04:08]} f5 {[%emt 0:00:24]} 18. Nb5 {[%emt 0:01:52]} fxe4 {[%emt 0:00:59]} 19. Nxd6 {[%emt 0:01:37]} Qxd6 {[%emt 0:00:02]} 20. fxe4 {[%emt 0:00:10]} Rf8 {[%emt 0:01:33]} 21. Rc6 {[%emt 0:11:39]} Rxf1+ {[%emt 0:04:29]} 22. Bxf1 {[%emt 0:00:34]} Qd7 {[%emt 0:00:05]} 23. b5 {[%emt 0:03:19]} Rf8 {[%emt 0:00:09]} 24. d6 {[%emt 0:11:28]} Nf6 {[%emt 0:05:49]} 25. Rc7 {[%emt 0:02:59]} Qg4 {[%emt 0:00:16]} 26. d7 {[%emt 0:00:47]} Rd8 {[%emt 0:02:27]} 27. h3 {[%emt 0:00:22]} Qxd7 {[%emt 0:01:13]} 28. Rxd7 {[%emt 0:00:10]} Rxd7 {[%emt 0:00:02]} 29. Qc3 {[%emt 0:01:07]} Re7 {[%emt 0:00:41]} 30. Qc8+ {[%emt 0:00:58]} Re8 {[%emt 0:00:12]} 31. Qb7 Bf8 {[%emt 0:00:38]} 32. Qxa7 {[%emt 0:02:25]} Nxe4 {[%emt 0:00:13]} 33. Bc4+ {[%emt 0:00:09]} Kh8 {[%emt 0:00:10]} 34. Qf7 {[%emt 0:00:08]} 1-0

[Event "Oleksandr Stadnyk Memorial 2020"]
[Site "Chortkiv"]
[Date "2020.12.07"]
[Round "1.2"]
[White "Medvedyk, Volodymyr"]
[Black "Hulka, Valentyn"]
[Result "1/2-1/2"]
[ECO "A15"]
[WhiteElo "2205"]
[BlackElo "1991"]
[Annotator "RC"]
[PlyCount "159"]
[EventDate "2020.12.07"]
[EventType "tourn"]
[EventCountry "UKR"]
[SourceTitle "playchess.com"]
[Source "ChessBase"]
[SourceQuality "1"]
[TimeControl "5400+30"]

1. c4 {[%emt 0:00:00]} Nf6 {[%emt 0:00:00]} 2. g3 {[%emt 0:01:06]} c6 {[%emt 0:00:00]} 3. Bg2 {[%emt 0:00:23]} d5 {[%emt 0:00:00]} 4. Nf3 {[%emt 0:00:06]} g6 {[%emt 0:00:26]} 5. b3 {[%emt 0:00:39]} Bg7 {[%emt 0:00:09]} 6. Bb2 {[%emt 0:00:02]} O-O {[%emt 0:00:11]} 7. O-O {[%emt 0:00:07]} a5 {[%emt 0:00:03]} 8. Na3 {[%emt 0:15:08]} Bg4 {[%emt 0:02:35]} 9. Rc1 {[%emt 0:12:55]} Re8 {[%emt 0:01:38]} 10. cxd5 {[%emt 0:03:50]} cxd5 {[%emt 0:02:00]} 11. Ne5 {[%emt 0:00:44]} Nfd7 {[%emt 0:01:35]} 12. d4 {[%emt 0:15:01]} Nxe5 {[%emt 0:00:46]} 13. dxe5 {[%emt 0:00:02]} Nc6 {[%emt 0:12:57]} 14. Bxd5 {[%emt 0:10:45]} Nxe5 {[%emt 0:01:10]} 15. Bxb7 {[%emt 0:14:20]} Rb8 {[%emt 0:01:32]} 16. Qxd8 {[%emt 0:17:10]} Rexd8 {[%emt 0:00:12]} 17. Bxe5 {[%emt 0:02:58]} Bxe5 {[%emt 0:04:04]} 18. Nc4 {[%emt 0:00:51]} Rxb7 {[%emt 0:02:52]} 19. Nxe5 {[%emt 0:00:16]} Bxe2 {[%emt 0:00:07]} 20. Nc6 {[%emt 0:03:04]} Rd2 {[%emt 0:00:49]} 21. Nxa5 {[%emt 0:00:28]} Rb5 {[%emt 0:00:34]} 22. Nc4 {[%emt 0:00:21]} Rxa2 {[%emt 0:00:03]} 23. Rfe1 {[%emt 0:00:43]} Rxb3 {[%emt 0:00:12]} 24. Na5 {[%emt 0:00:30]} Rbb2 {[%emt 0:00:16]} 25. Nc6 {[%emt 0:00:26]} e6 {[%emt 0:01:24]} 26. Ra1 {[%emt 0:00:30]} Bf3 {[%emt 0:00:34]} 27. Rxa2 {[%emt 0:00:32]} Rxa2 {[%emt 0:00:02]} 28. Ne5 {[%emt 0:00:31]} Bd5 {[%emt 0:00:05]} 29. Nd3 {[%emt 0:00:30]} Rd2 {[%emt 0:00:30]} 30. Nf4 {[%emt 0:00:23]} Bf3 {[%emt 0:00:02]} 31. h4 {[%emt 0:00:35]} h6 {[%emt 0:00:05]} 32. Ng2 {[%emt 0:00:32]} Kg7 {[%emt 0:00:10]} 33. Re3 {[%emt 0:00:21]} Bd5 {[%emt 0:00:08]} 34. Ne1 {[%emt 0:00:38]} g5 {[%emt 0:00:08]} 35. hxg5 {[%emt 0:00:24]} hxg5 {[%emt 0:00:01]} 36. g4 {[%emt 0:00:36]} Rd4 {[%emt 0:00:13]} 37. f3 {[%emt 0:00:27]} Rd2 {[%emt 0:00:01]} 38. Nd3 {[%emt 0:00:32]} Kf6 {[%emt 0:00:24]} 39. Nf2 {[%emt 0:00:20]} Kg6 {[%emt 0:00:22]} 40. Kg2 {[%emt 0:00:40]} f5 {[%emt 0:00:09]} 41. gxf5+ {[%emt 0:00:10]} Kxf5 {[%emt 0:01:11]} 42. Kg3 {[%emt 0:00:31]} Rc2 {[%emt 0:01:02]} 43. Ng4 {[%emt 0:00:46]} Rc1 {[%emt 0:00:10]} 44. Re5+ {[%emt 0:00:29]} Kg6 {[%emt 0:00:01]} 45. Ne3 {[%emt 0:00:31]} Bb3 {[%emt 0:00:56]} 46. Rb5 {[%emt 0:00:35]} Rc3 {[%emt 0:00:34]} 47. Re5 {[%emt 0:00:30]} Rd3 {[%emt 0:00:53]} 48. Ng4 {[%emt 0:00:31]} Rd4 {[%emt 0:01:28]} 49. Nf2 {[%emt 0:00:27]} Kf6 {[%emt 0:00:32]} 50. Re4 {[%emt 0:00:33]} Rd2 {[%emt 0:01:13]} 51. Rb4 {[%emt 0:00:30]} Bd5 {[%emt 0:01:04]} 52. Ne4+ {[%emt 0:00:22]} Bxe4 {[%emt 0:00:05]} 53. Rxe4 {[%emt 0:00:02]} Kf5 {[%emt 0:00:10]} 54. Re3 {[%emt 0:01:05]} Rd4 {[%emt 0:00:13]} 55. Ra3 {[%emt 0:00:18]} Rd1 {[%emt 0:00:30]} 56. Rb3 {[%emt 0:00:40]} Rg1+ {[%emt 0:00:20]} 57. Kf2 {[%emt 0:00:07]} Rc1 {[%emt 0:00:08]} 58. Kg3 {[%emt 0:00:08]} Rc4 {[%emt 0:00:36]} 59. Ra3 {[%emt 0:00:28]} g4 {[%emt 0:00:01]} 60. fxg4+ {[%emt 0:01:18]} Rxg4+ {[%emt 0:00:06]} 61. Kf3 {[%emt 0:00:12]} Rf4+ {[%emt 0:00:06]} 62. Ke3 {[%emt 0:00:06]} Rh4 {[%emt 0:00:04]} 63. Ra5+ {[%emt 0:00:40]} e5 {[%emt 0:00:01]} 64. Kf3 {[%emt 0:00:52]} Rh3+ {[%emt 0:00:03]} 65. Kg2 {[%emt 0:00:41]} Rb3 {[%emt 0:00:02]} 66. Ra4 {[%emt 0:00:24]} e4 {[%emt 0:00:02]} 67. Ra8 {[%emt 0:00:32]} Kf4 {[%emt 0:00:08]} 68. Rh8 {[%emt 0:00:34]} Rf3 {[%emt 0:00:55]} 69. Ra8 {[%emt 0:00:30]} Ke5 {[%emt 0:00:17]} 70. Ra5+ {[%emt 0:00:28]} Kf6 {[%emt 0:00:47]} 71. Rb5 {[%emt 0:00:24]} Ke6 {[%emt 0:00:18]} 72. Ra5 {[%emt 0:00:18]} Rf8 {[%emt 0:00:12]} 73. Rb5 {[%emt 0:00:28]} Kd6 {[%emt 0:00:01]} 74. Ra5 {[%emt 0:00:27]} Rf7 {[%emt 0:00:17]} 75. Rb5 {[%emt 0:00:05]} e3 {[%emt 0:00:20]} 76. Rb3 {[%emt 0:00:49]} Re7 {[%emt 0:00:32]} 77. Rd3+ {[%emt 0:00:38]} Kc5 {[%emt 0:00:01]} 78. Kf1 {[%emt 0:00:08]} Kc4 {[%emt 0:00:07]} 79. Ke2 {[%emt 0:00:02]} Rh7 {[%emt 0:00:07]} 80. Rxe3 {[%emt 0:00:02]} 1/2-1/2

[Event "Oleksandr Stadnyk Memorial 2020"]
[Site "Chortkiv"]
[Date "2020.12.07"]
[Round "1.3"]
[White "Yaniuk, Volodymyr"]
[Black "Lozynskyi, Bohdan"]
[Result "1-0"]
[ECO "E06"]
[WhiteElo "2233"]
[BlackElo "2077"]
[Annotator "NA RC"]
[PlyCount "123"]
[EventDate "2020.12.07"]
[EventType "tourn"]
[EventCountry "UKR"]
[SourceTitle "playchess.com"]
[Source "ChessBase"]
[SourceQuality "1"]
[TimeControl "5400+30"]

1. d4 {[%emt 0:00:00]} d5 {[%emt 0:00:15]} 2. c4 {[%emt 0:00:00]} e6 {[%emt 0:00:19]} 3. Nf3 {[%emt 0:00:10]} Nf6 {[%emt 0:00:23]} 4. g3 {[%emt 0:00:13]} Be7 {[%emt 0:01:16]} 5. Bg2 {[%emt 0:00:12]} O-O {[%emt 0:00:24]} 6. O-O {[%emt 0:00:14]} dxc4 {[%emt 0:00:11]} 7. Ne5 {[%emt 0:00:06]} Nc6 {[%emt 0:00:40]} 8. Nxc6 {[%emt 0:00:08]} bxc6 {[%emt 0:00:10]} 9. Na3 {[%emt 0:00:03]} Bxa3 {[%emt 0:01:59]} 10. bxa3 {[%emt 0:00:02]} Ba6 {[%emt 0:02:03]} 11. Qd2 {[%emt 0:00:08]} Rb8 {[%emt 0:06:08]} 12. Qa5 {[%emt 0:00:07]} Qc8 {[%emt 0:00:27]} ({But not} 12... Qxd4 $2 13. Be3 $18) 13. Rd1 {[%emt 0:09:05]} Rd8 {[%emt 0:10:55]} 14. a4 {[%emt 0:20:03]} Nd5 {[%emt 0:10:11]} 15. Ba3 {[%emt 0:03:10]} c3 {[%emt 0:10:29]} 16. e4 {[%emt 0:07:46]} c2 {[%emt 0:06:59]} 17. Rdc1 {[%emt 0:09:50]} Nb6 {[%emt 0:00:25]} 18. Bc5 {[%emt 0:22:44]} Nc4 {[%emt 0:05:08]} 19. Qc3 {[%emt 0:01:11]} Nb2 {[%emt 0:01:20]} 20. Qxc2 {[%emt 0:11:04]} Nd3 {[%emt 0:00:30]} 21. Rd1 {[%emt 0:00:48]} Nxc5 {[%emt 0:01:23]} 22. Qxc5 {[%emt 0:00:17]} Rb6 {[%emt 0:13:11]} 23. a5 {[%emt 0:01:11]} Rb2 {[%emt 0:03:46]} 24. Qxa7 {[%emt 0:02:04]} Rb5 $16 {[%emt 0:07:02]} 25. Rdc1 {[%emt 0:02:58]} Rxa5 {[%emt 0:01:26]} 26. Rxc6 {[%emt 0:00:47]} Bb7 {[%emt 0:00:46]} 27. Qxa5 {[%emt 0:00:34]} Bxc6 {[%emt 0:00:05]} 28. Rc1 {[%emt 0:00:32]} Qb7 {[%emt 0:01:04]} 29. d5 {[%emt 0:00:43]} exd5 {[%emt 0:03:44]} 30. exd5 {[%emt 0:00:02]} Qa8 {[%emt 0:00:31]} 31. Qxa8 {[%emt 0:00:32]} Bxa8 {[%emt 0:00:05]} 32. Rxc7 {[%emt 0:00:19]} Kf8 {[%emt 0:00:06]} 33. Rc5 {[%emt 0:01:30]} Ke7 {[%emt 0:00:15]} 34. Ra5 {[%emt 0:00:08]} Kd6 {[%emt 0:00:12]} 35. Ra7 {[%emt 0:00:53]} Bxd5 {[%emt 0:01:17]} 36. Bxd5 {[%emt 0:00:14]} Kxd5 {[%emt 0:00:08]} 37. Rxf7 {[%emt 0:00:03]} Rg8 {[%emt 0:00:10]} 38. a4 {[%emt 0:00:41]} Ke6 {[%emt 0:00:08]} 39. Rb7 {[%emt 0:00:17]} Kf6 {[%emt 0:00:06]} 40. a5 {[%emt 0:00:15]} Rc8 {[%emt 0:00:08]} 41. Rb6+ {[%emt 0:00:14]} Kf7 {[%emt 0:00:06]} 42. Rb7+ {[%emt 0:00:33]} Kg6 {[%emt 0:00:08]} 43. a6 {[%emt 0:00:09]} Rc1+ {[%emt 0:00:07]} 44. Kg2 {[%emt 0:00:06]} Ra1 {[%emt 0:00:03]} 45. a7 {[%emt 0:00:05]} h6 {[%emt 0:00:16]} 46. h4 {[%emt 0:00:19]} Ra3 {[%emt 0:00:05]} 47. Kf1 {[%emt 0:02:04]} Ra2 {[%emt 0:00:06]} 48. Kg2 {[%emt 0:00:58]} Ra3 {[%emt 0:00:05]} 49. g4 {[%emt 0:00:35]} Kf6 {[%emt 0:00:06]} 50. f3 {[%emt 0:00:27]} Ra2+ {[%emt 0:00:12]} 51. Kg3 {[%emt 0:00:19]} Ra4 {[%emt 0:00:06]} 52. Kf2 {[%emt 0:00:37]} Ra3 {[%emt 0:00:04]} 53. Ke2 {[%emt 0:00:06]} Kg6 {[%emt 0:00:04]} 54. h5+ {[%emt 0:00:50]} Kf6 {[%emt 0:00:04]} 55. Kd2 {[%emt 0:00:11]} Ra1 {[%emt 0:00:05]} 56. Kc3 {[%emt 0:00:13]} Ra3+ {[%emt 0:00:04]} 57. Kb4 {[%emt 0:00:09]} Ra1 {[%emt 0:00:04]} 58. Kb5 {[%emt 0:00:12]} Rb1+ {[%emt 0:00:05]} 59. Kc6 {[%emt 0:00:08]} Rc1+ {[%emt 0:00:09]} 60. Kd7 {[%emt 0:00:10]} Rd1+ {[%emt 0:00:05]} 61. Kc8 {[%emt 0:00:04]} Re1 {[%emt 0:00:12]} 62. Rb6+ {[%emt 0:00:13]} 1-0

[Event "Oleksandr Stadnyk Memorial 2020"]
[Site "Chortkiv"]
[Date "2020.12.07"]
[Round "2.1"]
[White "Polishchuk, Oleg"]
[Black "Lozynskyi, Bohdan"]
[Result "0-1"]
[ECO "A21"]
[WhiteElo "2155"]
[BlackElo "2077"]
[Annotator "RC"]
[PlyCount "74"]
[EventDate "2020.12.07"]
[EventType "tourn"]
[EventCountry "UKR"]
[SourceTitle "playchess.com"]
[Source "ChessBase"]
[SourceQuality "1"]
[TimeControl "5400+30"]

1. c4 {[%emt 0:00:00]} e5 {[%emt 0:00:00]} 2. Nc3 {[%emt 0:00:00]} d6 {[%emt 0:00:00]} 3. g3 {[%emt 0:00:05]} Be7 {[%emt 0:00:00]} 4. Bg2 {[%emt 0:00:07]} f5 {[%emt 0:00:00]} 5. Nf3 {[%emt 0:02:32]} Nf6 {[%emt 0:00:08]} 6. d4 {[%emt 0:00:15]} e4 {[%emt 0:00:10]} 7. Nd2 {[%emt 0:01:50]} c6 {[%emt 0:00:42]} 8. O-O {[%emt 0:00:12]} O-O {[%emt 0:00:31]} 9. d5 {[%emt 0:01:20]} Nbd7 {[%emt 0:00:36]} 10. f3 {[%emt 0:02:14]} Ne5 {[%emt 0:05:52]} 11. Qb3 {[%emt 0:06:20]} Qa5 {[%emt 0:05:27]} 12. Kh1 {[%emt 0:07:07]} exf3 13. Nxf3 {[%emt 0:00:50]} Neg4 {[%emt 0:05:24]} 14. h3 {[%emt 0:04:05]} Nh5 {[%emt 0:02:26]} 15. hxg4 {[%emt 0:07:53]} Nxg3+ {[%emt 0:00:10]} 16. Kg1 {[%emt 0:00:12]} fxg4 {[%emt 0:01:23]} 17. Nd4 {[%emt 0:01:02]} Nxf1 {[%emt 0:00:25]} 18. Bxf1 {[%emt 0:00:03]} Bf6 {[%emt 0:07:54]} 19. e3 {[%emt 0:00:18]} Qd8 {[%emt 0:04:50]} 20. Ne4 {[%emt 0:03:56]} Be5 {[%emt 0:01:24]} 21. Qc2 {[%emt 0:03:06]} Qh4 {[%emt 0:00:42]} 22. Qg2 {[%emt 0:00:50]} g3 {[%emt 0:05:39]} 23. Bd2 {[%emt 0:00:35]} Bh3 {[%emt 0:01:47]} 24. Qxh3 {[%emt 0:00:16]} Rxf1+ {[%emt 0:00:27]} 25. Kg2 {[%emt 0:01:27]} Qxh3+ {[%emt 0:00:07]} 26. Kxh3 {[%emt 0:00:02]} Rxa1 {[%emt 0:00:01]} 27. Nxg3 {[%emt 0:00:18]} cxd5 {[%emt 0:01:07]} 28. cxd5 {[%emt 0:00:07]} Bxd4 {[%emt 0:00:31]} 29. exd4 {[%emt 0:00:02]} Rxa2 {[%emt 0:00:09]} 30. Bc3 {[%emt 0:00:14]} a5 {[%emt 0:01:15]} 31. Nf5 {[%emt 0:00:02]} b5 {[%emt 0:00:47]} 32. Nxd6 {[%emt 0:00:11]} b4 {[%emt 0:00:08]} 33. Be1 {[%emt 0:00:24]} Rxb2 {[%emt 0:00:33]} 34. Nb7 {[%emt 0:00:02]} a4 {[%emt 0:00:41]} 35. d6 {[%emt 0:00:16]} a3 {[%emt 0:00:10]} 36. d7 {[%emt 0:00:14]} a2 {[%emt 0:00:10]} 37. Nd6 {[%emt 0:00:33]} Rd8 {[%emt 0:00:15]} 0-1

[Event "Oleksandr Stadnyk Memorial 2020"]
[Site "Chortkiv"]
[Date "2020.12.07"]
[Round "2.2"]
[White "Hulka, Valentyn"]
[Black "Yaniuk, Volodymyr"]
[Result "1/2-1/2"]
[ECO "C88"]
[WhiteElo "1991"]
[BlackElo "2233"]
[Annotator "RC"]
[PlyCount "66"]
[EventDate "2020.12.07"]
[EventType "tourn"]
[EventCountry "UKR"]
[SourceTitle "playchess.com"]
[Source "ChessBase"]
[SourceQuality "1"]
[TimeControl "5400+30"]

1. e4 {[%emt 0:00:00]} e5 {[%emt 0:00:00]} 2. Nf3 {[%emt 0:00:00]} Nc6 {[%emt 0:00:00]} 3. Bb5 {[%emt 0:00:00]} a6 {[%emt 0:00:00]} 4. Ba4 {[%emt 0:00:00]} Nf6 {[%emt 0:00:00]} 5. O-O {[%emt 0:00:00]} Be7 {[%emt 0:00:00]} 6. Re1 {[%emt 0:00:03]} b5 {[%emt 0:00:00]} 7. Bb3 {[%emt 0:00:18]} O-O {[%emt 0:00:03]} 8. d4 {[%emt 0:00:10]} Nxd4 {[%emt 0:02:44]} 9. Nxd4 {[%emt 0:00:33]} exd4 {[%emt 0:00:02]} 10. e5 {[%emt 0:00:07]} Ne8 {[%emt 0:00:50]} 11. c3 {[%emt 0:00:37]} Bb7 {[%emt 0:06:01]} 12. cxd4 {[%emt 0:00:29]} d6 {[%emt 0:03:25]} 13. Nc3 {[%emt 0:10:12]} dxe5 {[%emt 0:13:08]} 14. dxe5 {[%emt 0:00:08]} c5 {[%emt 0:00:45]} 15. Qg4 {[%emt 0:05:29]} Qb6 {[%emt 0:07:44]} 16. Nd5 {[%emt 0:07:52]} Bxd5 {[%emt 0:02:51]} 17. Bxd5 {[%emt 0:00:19]} Rd8 {[%emt 0:00:17]} 18. Be4 {[%emt 0:01:29]} Rd4 {[%emt 0:08:55]} 19. Qh3 {[%emt 0:02:25]} g6 {[%emt 0:03:01]} 20. Bh6 {[%emt 0:05:26]} Ng7 {[%emt 0:00:14]} 21. Bc2 {[%emt 0:15:50]} Rfd8 {[%emt 0:05:30]} 22. Be3 {[%emt 0:00:36]} R4d7 {[%emt 0:01:44]} 23. f4 {[%emt 0:01:41]} Qe6 {[%emt 0:17:54]} 24. Qf3 {[%emt 0:02:52]} Nf5 {[%emt 0:06:47]} 25. Bf2 {[%emt 0:00:38]} h5 {[%emt 0:05:16]} 26. b3 {[%emt 0:00:49]} Rd2 {[%emt 0:04:18]} 27. Qe4 {[%emt 0:02:50]} Nd4 {[%emt 0:03:41]} 28. Rac1 {[%emt 0:01:23]} Nxc2 {[%emt 0:06:08]} 29. Rxc2 {[%emt 0:00:07]} f5 {[%emt 0:00:30]} 30. exf6 {[%emt 0:00:12]} Qxe4 {[%emt 0:00:24]} 31. Rxd2 {[%emt 0:00:45]} Qxe1+ 32. Bxe1 {[%emt 0:00:06]} Rxd2 {[%emt 0:03:05]} 33. Bxd2 Bxf6 {[%emt 0:00:30]} 1/2-1/2

[Event "Oleksandr Stadnyk Memorial 2020"]
[Site "Chortkiv"]
[Date "2020.12.07"]
[Round "2.3"]
[White "Vakulenko, Oleksandr"]
[Black "Medvedyk, Volodymyr"]
[Result "1-0"]
[ECO "A53"]
[WhiteElo "2245"]
[BlackElo "2205"]
[Annotator "RC"]
[PlyCount "73"]
[EventDate "2020.12.07"]
[EventType "tourn"]
[EventCountry "UKR"]
[SourceTitle "playchess.com"]
[Source "ChessBase"]
[SourceQuality "1"]
[TimeControl "5400+30"]

1. d4 {[%emt 0:00:00]} Nf6 {[%emt 0:00:00]} 2. c4 {[%emt 0:00:00]} d6 {[%emt 0:00:00]} 3. Nc3 {[%emt 0:00:15]} e5 {[%emt 0:00:21]} 4. e4 {[%emt 0:02:24]} exd4 {[%emt 0:00:28]} 5. Qxd4 {[%emt 0:00:08]} Nc6 {[%emt 0:00:14]} 6. Qd2 {[%emt 0:00:36]} g6 {[%emt 0:03:23]} 7. b3 {[%emt 0:00:34]} Bg7 {[%emt 0:03:43]} 8. Bb2 {[%emt 0:00:23]} O-O {[%emt 0:04:39]} 9. Bd3 {[%emt 0:01:44]} Ne5 {[%emt 0:06:54]} 10. Bc2 {[%emt 0:02:31]} Nh5 {[%emt 0:10:09]} 11. O-O-O {[%emt 0:22:56]} f5 {[%emt 0:12:18]} 12. f3 {[%emt 0:08:09]} Kh8 {[%emt 0:20:49]} 13. Nge2 {[%emt 0:06:10]} Be6 {[%emt 0:04:15]} 14. Nd4 {[%emt 0:12:59]} Bxc4 {[%emt 0:01:16]} 15. exf5 {[%emt 0:06:54]} c5 {[%emt 0:10:26]} 16. Ndb5 {[%emt 0:06:04]} Bxb5 17. Nxb5 {[%emt 0:00:06]} gxf5 {[%emt 0:16:21]} 18. Nxd6 {[%emt 0:01:01]} Qf6 {[%emt 0:03:07]} 19. Kb1 {[%emt 0:06:40]} Rad8 {[%emt 0:00:35]} 20. Qd5 {[%emt 0:03:23]} Nf4 {[%emt 0:00:30]} 21. Qxe5 {[%emt 0:00:56]} Rxd6 {[%emt 0:00:27]} 22. Rxd6 {[%emt 0:01:00]} Qxe5 {[%emt 0:00:07]} 23. Bxe5 {[%emt 0:00:04]} Bxe5 {[%emt 0:00:02]} 24. Rd7 {[%emt 0:08:55]} Nxg2 {[%emt 0:00:38]} 25. Rxb7 {[%emt 0:01:03]} Nh4 {[%emt 0:00:39]} 26. Rf1 {[%emt 0:04:34]} Bxh2 {[%emt 0:00:54]} 27. Rxa7 {[%emt 0:00:20]} h6 {[%emt 0:00:41]} 28. a4 {[%emt 0:00:24]} Rb8 {[%emt 0:00:33]} 29. a5 {[%emt 0:01:05]} Be5 {[%emt 0:00:30]} 30. a6 {[%emt 0:00:32]} Rb6 {[%emt 0:00:21]} 31. f4 {[%emt 0:01:05]} Bc3 {[%emt 0:00:36]} 32. Rd1 {[%emt 0:00:17]} Bd4 {[%emt 0:00:23]} 33. Re1 {[%emt 0:00:06]} Rb8 {[%emt 0:00:39]} 34. Rb7 {[%emt 0:00:14]} Rg8 {[%emt 0:00:29]} 35. a7 {[%emt 0:01:00]} c4 {[%emt 0:00:05]} 36. bxc4 {[%emt 0:00:18]} Ng6 {[%emt 0:00:57]} 37. Bxf5 {[%emt 0:00:25]} 1-0

[Event "Oleksandr Stadnyk Memorial 2020"]
[Site "Chortkiv"]
[Date "2020.12.08"]
[Round "3.1"]
[White "Medvedyk, Volodymyr"]
[Black "Polishchuk, Oleg"]
[Result "1-0"]
[ECO "A25"]
[WhiteElo "2205"]
[BlackElo "2155"]
[Annotator "ChessBase"]
[PlyCount "52"]
[EventDate "2020.12.07"]
[EventType "tourn"]
[EventCountry "UKR"]
[SourceTitle "playchess.com"]
[Source "ChessBase"]
[SourceQuality "1"]
[TimeControl "5400+30"]

1. c4 {[%emt 0:07:00]} e5 {[%emt 0:00:00]} 2. g3 {[%emt 0:00:39]} Nc6 {[%emt 0:00:00]} 3. Nc3 {[%emt 0:00:49]} g6 {[%emt 0:00:00]} 4. Bg2 {[%emt 0:00:28]} Bg7 {[%emt 0:00:00]} 5. e4 {[%emt 0:00:40]} d6 {[%emt 0:00:12]} 6. Nge2 {[%emt 0:00:33]} h5 {[%emt 0:00:27]} 7. h3 {[%emt 0:06:36]} Be6 {[%emt 0:00:20]} 8. d3 {[%emt 0:02:11]} Qd7 {[%emt 0:00:06]} 9. a3 {[%emt 0:03:00]} f5 {[%emt 0:08:35]} 10. Bg5 {[%emt 0:03:30]} h4 {[%emt 0:02:57]} 11. exf5 {[%emt 0:05:06]} gxf5 {[%emt 0:00:13]} 12. Bxh4 {[%emt 0:10:52]} Nf6 {[%emt 0:00:19]} 13. Nd5 {[%emt 0:16:30]} Bxd5 {[%emt 0:00:08]} 14. cxd5 {[%emt 0:00:14]} Ne7 {[%emt 0:00:12]} 15. Qb3 {[%emt 0:01:36]} O-O-O {[%emt 0:01:21]} 16. Bg5 {[%emt 0:07:57]} Kb8 {[%emt 0:00:40]} 17. Rc1 {[%emt 0:02:29]} Ng6 {[%emt 0:02:29]} 18. h4 {[%emt 0:02:37]} Rde8 {[%emt 0:00:19]} 19. Rc4 {[%emt 0:04:46]} Qf7 {[%emt 0:02:30]} 20. O-O {[%emt 0:05:32]} Bh6 {[%emt 0:01:31]} 21. Rfc1 {[%emt 0:01:41]} Rc8 {[%emt 0:00:24]} 22. Bxh6 {[%emt 0:04:50]} Rxh6 {[%emt 0:00:03]} 23. Rb4 {[%emt 0:02:37]} b6 {[%emt 0:00:19]} 24. Nc3 {[%emt 0:03:42]} Ng4 {[%emt 0:01:54]} 25. Nb5 {[%emt 0:01:38]} f4 {[%emt 0:02:20]} 26. Qa4 {[%emt 0:04:17]} c5 {[%emt 0:02:54]} 1-0